bitfinex/quotes_BTCUSD_20240906
["timestamp","ask_amount","ask_price","bid_price","bid_amount"]
[1725656671667,0.888677,53167.0,53141.0,0.1928]
[1725656671892,0.888677,53167.0,53142.0,0.55430836]
[1725656671893,0.003,53151.0,53142.0,0.55430836]
[1725656672436,0.003,53151.0,53141.0,0.1928]
[1725656672437,0.02883496,53153.0,53141.0,0.1928]
[1725656672629,0.0673,53166.0,53149.0,0.001]
[1725656672630,0.02883496,53151.0,53149.0,0.001]
[1725656672882,0.02883496,53155.0,53149.0,0.001]
[1725656673112,0.02883496,53155.0,53152.0,0.01]
[1725656673334,0.02883496,53161.0,53152.0,0.01]
[1725656673559,0.00082,53170.0,53157.0,0.007]
[1725656673560,0.02767915,53160.0,53157.0,0.007]
[1725656673785,0.02767915,53159.0,53157.0,0.007]
[1725656674038,0.05651411,53169.0,53157.0,0.007]
[1725656674293,0.05651411,53169.0,53145.0,0.002]
[1725656674294,0.02767915,53169.0,53164.0,0.007]
[1725656674506,0.02768562,53168.0,53165.0,0.3851]
[1725656674743,0.00082,53170.0,53165.0,0.3851]
[1725656674954,0.02768658,53169.0,53165.0,0.3851]
[1725656675213,0.01831205,53190.0,53165.0,0.3791]
[1725656675447,0.55430836,53185.0,53165.0,0.3791]
[1725656675734,0.25568722,53184.0,53165.0,0.3791]
[1725656675958,0.005,53170.0,53167.0,0.007]
[1725656676175,0.005,53170.0,53165.0,0.3791]
[1725656676421,0.00382,53205.0,53165.0,0.3791]
[1725656676422,0.0243,53200.0,53169.0,0.56130836]
[1725656676915,0.00082,53205.0,53195.0,0.007]
[1725656676916,0.02769951,53199.0,53195.0,0.007]
[1725656676920,0.00082,53205.0,53193.0,0.013]
[1725656676921,0.075456,53198.0,53193.0,0.013]
[1725656677198,0.00082,53205.0,53204.0,0.015]
[1725656677434,0.00082,53205.0,53204.0,0.2078]
[1725656677665,0.00082,53205.0,53204.0,0.2058]
[1725656677914,0.00082,53205.0,53204.0,0.1928]
[1725656678368,0.00082,53205.0,53180.0,0.188039]
[1725656678369,0.188008,53189.0,53188.0,0.3802]
[1725656678599,0.188008,53189.0,53188.0,0.3932]
[1725656679057,0.00082,53205.0,53204.0,0.3862]
[1725656679285,0.00082,53205.0,53204.0,0.5817]
[1725656679967,0.00082,53209.0,53208.0,0.006]
[1725656680217,0.00082,53209.0,53204.0,0.1955]
[1725656680218,0.00082,53216.0,53205.0,0.006]
[1725656680453,0.00082,53216.0,53204.0,0.1955]
[1725656680678,0.00082,53216.0,53199.0,0.006]
[1725656680894,0.00082,53216.0,53175.0,0.55430836]
[1725656680895,0.888677,53215.0,53192.0,0.006]
[1725656681111,0.00082,53216.0,53197.0,0.006]
[1725656681337,0.867,53215.0,53197.0,0.002]
[1725656681563,0.00082,53216.0,53189.0,0.1955]
[1725656681564,1.011677,53214.0,53189.0,0.1955]
[1725656681786,0.00082,53216.0,53204.0,0.002]
[1725656682008,0.00082,53216.0,53204.0,0.016]
[1725656682451,0.00082,53216.0,53204.0,0.002]
[1725656682670,0.00082,53216.0,53199.0,0.002]
[1725656682892,0.00082,53216.0,53200.0,0.3802]
[1725656683118,0.0115034,53221.0,53214.0,0.002]
[1725656683794,0.0115034,53221.0,53212.0,0.002]
[1725656684004,0.0115034,53221.0,53213.0,0.3848]
[1725656684216,0.0115034,53221.0,53214.0,0.002]
[1725656684475,0.0115034,53221.0,53220.0,0.006]
[1725656684701,0.0115034,53221.0,53220.0,0.3868]
[1725656684928,0.000811,53221.0,53220.0,0.3908]
[1725656685153,0.0037667,53221.0,53220.0,0.43208]
[1725656685368,0.01060289,53232.0,53231.0,0.3908]
[1725656685595,0.01060289,53232.0,53231.0,0.3928]
[1725656685819,0.01060289,53232.0,53231.0,0.3908]
[1725656686258,0.01060289,53232.0,53231.0,0.3848]
[1725656686904,0.01060289,53232.0,53231.0,0.44388]
[1725656687129,0.01060289,53232.0,53231.0,0.44588]
[1725656687356,0.00096,53253.0,53242.0,0.006]
[1725656687565,0.55430836,53251.0,53243.0,0.3848]
[1725656687787,0.00096,53253.0,53244.0,0.1914]
[1725656687998,0.00096,53253.0,53237.0,0.002]
[1725656688252,0.00096,53253.0,53236.0,0.3848]
[1725656688253,0.165,53252.0,53236.0,0.3868]
[1725656688473,0.225596,53252.0,53236.0,0.3848]
[1725656688697,1.077477,53251.0,53232.0,0.002]
[1725656688917,0.9164266,53250.0,53230.0,0.002]
[1725656689129,0.9164266,53249.0,53233.0,0.55430836]
[1725656689337,0.988677,53248.0,53234.0,0.002]
[1725656689557,0.1,53248.0,53237.0,0.55430836]
[1725656689782,0.00096,53253.0,53252.0,0.006]
[1725656690003,0.00096,53253.0,53251.0,0.006]
[1725656690220,0.00096,53253.0,53252.0,0.006]
[1725656690435,0.00096,53253.0,53252.0,0.008]
[1725656690883,0.00096,53253.0,53247.0,0.1914]
[1725656690884,0.00046,53253.0,53251.0,0.006]
[1725656691099,0.00046,53253.0,53252.0,0.006]
[1725656691791,0.00046,53253.0,53252.0,0.01]
[1725656692007,0.00046,53253.0,53252.0,0.012]
[1725656692272,0.00046,53253.0,53252.0,0.002]
[1725656692494,0.00046,53253.0,53252.0,0.004]
[1725656692713,0.00046,53253.0,53252.0,0.005]
[1725656692949,0.00046,53253.0,53252.0,0.003]
[1725656693174,0.00046,53253.0,53252.0,0.006]
[1725656693423,0.00046,53253.0,53252.0,0.016]
[1725656693630,0.00082,53275.0,53252.0,0.016]
[1725656693631,0.00082,53275.0,53269.0,0.008]
[1725656693858,0.00082,53275.0,53269.0,0.3928]
[1725656694083,0.00082,53275.0,53252.0,0.2074]
[1725656694306,0.00082,53275.0,53253.0,0.55430836]
[1725656694307,0.02776626,53269.0,53253.0,0.55430836]
[1725656694529,0.02776626,53269.0,53252.0,0.2014]
[1725656694530,0.0259083,53278.0,53257.0,0.002]
[1725656694777,0.02776242,53268.0,53257.0,0.002]
[1725656694996,0.0259083,53278.0,53256.0,0.3848]
[1725656694997,0.02776242,53267.0,53256.0,0.3848]
[1725656695236,0.02776242,53266.0,53257.0,0.006]
[1725656695452,0.02776242,53266.0,53256.0,0.3848]
[1725656695453,0.0103761,53285.0,53264.0,0.006]
[1725656695674,0.58207705,53280.0,53264.0,0.006]
[1725656695886,0.97467605,53279.0,53264.0,0.002]
[1725656696137,0.0103761,53285.0,53256.0,0.3848]
[1725656696138,0.91644569,53278.0,53256.0,0.3848]
[1725656696353,0.02776869,53277.0,53257.0,0.56406376]
[1725656696570,0.02776869,53276.0,53260.0,0.002]
[1725656696785,0.0103761,53285.0,53260.0,0.002]
[1725656696786,0.02776869,53275.0,53260.0,0.002]
[1725656696999,0.02776869,53274.0,53262.0,0.006]
[1725656697213,0.02776869,53273.0,53262.0,0.006]
[1725656697430,0.0103761,53285.0,53262.0,0.008]
[1725656697431,0.02776869,53272.0,53262.0,0.008]
[1725656697656,0.02776869,53271.0,53260.0,0.002]
[1725656697880,0.023,53270.0,53258.0,0.002]
[1725656698095,0.023,53270.0,53256.0,0.3858]
[1725656698310,0.023,53270.0,53258.0,0.002]
[1725656698311,0.02776919,53269.0,53258.0,0.002]
[1725656698531,0.02776919,53269.0,53256.0,0.3858]
[1725656698532,0.05076919,53268.0,53256.0,0.3848]
[1725656698785,0.05076919,53268.0,53251.0,0.006]
[1725656698786,0.74376919,53267.0,53246.0,0.006]
[1725656699047,0.0285,53269.0,53247.0,0.006]
[1725656699048,1.01897311,53266.0,53247.0,0.006]
[1725656699280,1.01644619,53265.0,53247.0,0.002]
[1725656699547,1.01644619,53265.0,53247.0,0.006]
[1725656699548,0.59576919,53264.0,53247.0,0.006]
[1725656699772,0.54476919,53263.0,53245.0,0.1998]
[1725656700016,0.64776919,53262.0,53247.0,0.006]
[1725656700236,0.1878,53248.0,53247.0,0.006]
[1725656700460,0.1878,53248.0,53247.0,0.008]
[1725656700942,0.1,53248.0,53245.0,0.2018]
[1725656701223,0.1,53248.0,53205.0,0.01]
[1725656701224,0.187835,53238.0,53237.0,0.2018]
[1725656701450,0.014,53272.0,53237.0,0.2018]
[1725656701451,0.18783,53240.0,53237.0,0.22438]
[1725656701674,0.0103761,53285.0,53262.0,0.006]
[1725656701675,0.55430836,53276.0,53262.0,0.006]
[1725656701897,0.55430836,53276.0,53263.0,0.605]
[1725656701898,0.187744,53264.0,53263.0,0.605]
[1725656702388,0.0103761,53285.0,53277.0,0.006]
[1725656702633,0.0103761,53285.0,53277.0,0.603]
[1725656702897,0.0103761,53285.0,53284.0,0.004]
[1725656703146,0.0103761,53338.0,53305.0,0.008]
[1725656703487,0.0103761,53338.0,53305.0,0.4735611]
[1725656703734,0.0103761,53338.0,53324.0,0.006]
[1725656703944,0.0103761,53338.0,53324.0,0.5796]
[1725656704203,0.29240363,53415.0,53338.0,0.01]
[1725656704204,0.04661983,53411.0,53338.0,0.01]
[1725656704444,0.10687594,53423.0,53338.0,0.01]
[1725656704445,0.55430836,53359.0,53344.0,0.01]
[1725656704659,0.449,53387.0,53345.0,0.55430836]
[1725656704660,0.9164847,53358.0,53345.0,0.55430836]
[1725656704880,0.449,53387.0,53339.0,0.4141]
[1725656704881,0.9164847,53357.0,53339.0,0.4141]
[1725656705105,0.0278077,53356.0,53350.0,0.01]
[1725656705331,0.0278077,53356.0,53340.0,0.55430836]
[1725656705332,0.00081,53379.0,53364.0,0.01]
[1725656705564,0.00081,53379.0,53357.0,0.4141]
[1725656705565,0.00081,53379.0,53362.0,0.01]
[1725656705566,0.91649368,53378.0,53362.0,0.01]
[1725656705776,0.91649368,53377.0,53359.0,0.01]
[1725656705981,0.91649368,53377.0,53357.0,0.4141]
[1725656705982,0.91649368,53376.0,53357.0,0.4141]
[1725656706194,0.888677,53375.0,53357.0,0.4141]
[1725656706400,0.91649145,53375.0,53358.0,0.56430836]
[1725656706615,0.02781445,53374.0,53368.0,0.01]
[1725656706848,0.02781445,53378.0,53373.0,0.01]
[1725656707065,0.02781445,53378.0,53366.0,0.01]
[1725656707066,0.02782033,53377.0,53362.0,0.4141]
[1725656707282,0.02782033,53376.0,53363.0,0.55430836]
[1725656707700,0.00081,53379.0,53363.0,0.55430836]
[1725656707701,0.02782033,53375.0,53369.0,0.01]
[1725656707707,0.00081,53379.0,53376.0,0.01]
[1725656707919,0.00081,53379.0,53378.0,0.03]
[1725656708148,0.00081,53379.0,53378.0,0.01]
[1725656708373,0.00081,53379.0,53370.0,0.5968]
[1725656708374,0.00081,53379.0,53370.0,0.4141]
[1725656708833,0.00081,53379.0,53357.0,0.002]
[1725656708834,0.888677,53378.0,53353.0,0.4141]
[1725656709055,0.888677,53378.0,53346.0,0.01]
[1725656709056,0.11813567,53377.0,53357.0,0.55430836]
[1725656709318,0.11813567,53377.0,53337.0,0.02]
[1725656709319,0.0137,53376.0,53327.0,0.4141]
[1725656709541,0.449,53365.0,53340.0,0.5541962]
[1725656709756,0.04150302,53364.0,53354.0,0.55430836]
[1725656709975,0.04150302,53364.0,53340.0,0.5541962]
[1725656709976,0.02780302,53363.0,53341.0,0.01]
[1725656710197,0.02780302,53363.0,53340.0,0.5541962]
[1725656710198,0.02780302,53362.0,53351.0,0.03]
[1725656710419,0.02780302,53362.0,53340.0,0.5561962]
[1725656710420,0.023,53364.0,53350.0,0.1827]
[1725656710655,0.023,53364.0,53349.0,0.01]
[1725656710656,0.0137,53383.0,53360.0,0.55430836]
[1725656710879,0.8,53423.0,53369.0,0.01]
[1725656710880,0.0137,53392.0,53369.0,0.01]
[1725656711108,0.0137,53392.0,53364.0,0.002]
[1725656711109,0.0065685,53409.0,53377.0,0.01]
[1725656711342,0.0065685,53409.0,53378.0,0.4141]
[1725656711343,0.187339,53379.0,53378.0,0.4141]
[1725656711564,0.187367,53371.0,53370.0,0.4141]
[1725656711789,0.187367,53371.0,53370.0,0.4441]
[1725656712247,0.187367,53371.0,53370.0,0.4241]
[1725656712476,0.0137,53400.0,53365.0,0.01]
[1725656712477,0.187385,53366.0,53365.0,0.01]
[1725656712717,0.0137,53400.0,53362.0,0.4141]
[1725656712718,0.187395,53363.0,53362.0,0.4141]
[1725656713389,0.187395,53363.0,53353.0,0.6068]
[1725656713390,0.187427,53354.0,53353.0,0.6068]
[1725656713625,0.187427,53354.0,53353.0,0.68448]
[1725656713626,0.287427,53354.0,53353.0,0.68448]
[1725656713854,0.287427,53354.0,53353.0,0.6218]
[1725656714379,0.00081,53379.0,53353.0,0.6218]
[1725656714380,0.00081,53379.0,53372.0,0.01]
[1725656714671,0.00081,53379.0,53371.0,0.02]
[1725656714672,0.00081,53379.0,53371.0,0.01]
[1725656714948,0.00081,53379.0,53360.0,0.01]
[1725656714949,0.187402,53361.0,53360.0,0.01]
[1725656715225,0.00081,53379.0,53355.0,0.01]
[1725656715456,0.0187,53377.0,53347.0,0.01]
[1725656715693,0.9982357,53376.0,53353.0,0.55430836]
[1725656715930,0.888677,53375.0,53353.0,0.55430836]
[1725656716215,0.00081,53379.0,53367.0,0.01]
[1725656716465,0.00081,53379.0,53355.0,0.02]
[1725656716466,0.55430836,53377.0,53355.0,0.02]
[1725656716701,0.00081,53379.0,53357.0,0.55430836]
[1725656716981,0.00081,53379.0,53352.0,0.01]
[1725656716982,0.888677,53378.0,53352.0,0.01]
[1725656717210,0.888677,53378.0,53350.0,0.1827]
[1725656717211,0.64325706,53377.0,53350.0,0.1827]
[1725656717444,0.64325706,53377.0,53343.0,0.55430836]
[1725656717445,0.2124,53375.0,53343.0,0.55430836]
[1725656717675,0.907377,53374.0,53343.0,0.55430836]
[1725656717943,0.988677,53373.0,53357.0,0.55430836]
[1725656718182,0.023,53372.0,53353.0,0.02]
[1725656718423,0.0889487,53377.0,53343.0,0.55430836]
[1725656718424,0.2124,53390.0,53362.0,0.02]
[1725656718713,0.2124,53390.0,53361.0,0.002]
[1725656718714,0.2124,53390.0,53376.0,0.01]
[1725656718957,0.01,53416.0,53378.0,0.01]
[1725656718958,0.2311,53403.0,53378.0,0.01]
[1725656719426,0.2311,53403.0,53378.0,0.4041]
[1725656719663,0.2311,53403.0,53378.0,0.5754]
[1725656719932,0.2311,53403.0,53378.0,0.3941]
[1725656720165,0.2311,53403.0,53341.0,0.01]
[1725656720166,0.0287,53403.0,53368.0,0.01]
[1725656720428,0.2124,53385.0,53368.0,0.01]
[1725656720681,0.2124,53385.0,53363.0,0.3941]
[1725656720955,0.2124,53385.0,53363.0,0.4041]
[1725656721211,0.2124,53385.0,53365.0,0.01]
[1725656721212,0.123,53384.0,53365.0,0.01]
[1725656721692,0.123,53384.0,53365.0,0.02]
[1725656721912,0.123,53384.0,53363.0,0.3941]
[1725656721913,0.1,53384.0,53374.0,0.002]
[1725656722141,0.2124,53397.0,53370.0,0.02]
[1725656722142,0.1,53396.0,53370.0,0.02]
[1725656722622,0.1,53396.0,53366.0,0.01]
[1725656722891,0.1,53396.0,53369.0,0.02]
[1725656723129,0.1,53396.0,53367.0,0.01]
[1725656723356,0.1,53396.0,53363.0,0.3941]
[1725656723357,0.21321,53379.0,53366.0,0.01]
[1725656723583,0.21321,53379.0,53356.0,0.1813]
[1725656723584,0.123191,53378.0,53359.0,0.02]
[1725656723796,0.123191,53378.0,53356.0,0.1813]
[1725656723797,0.023,53377.0,53357.0,0.57430836]
[1725656724017,0.023,53377.0,53357.0,0.01]
[1725656724696,0.023,53377.0,53363.0,0.01]
[1725656724929,0.00081,53379.0,53356.0,0.1813]
[1725656724930,0.00081,53379.0,53370.0,0.02]
[1725656725165,0.00081,53379.0,53364.0,0.40214733]
[1725656725166,0.00081,53379.0,53378.0,0.012]
[1725656725393,0.2124,53395.0,53378.0,0.209]
[1725656725394,0.20221,53395.0,53378.0,0.209]
[1725656725618,0.20221,53395.0,53370.0,0.199]
[1725656725619,0.55430836,53391.0,53370.0,0.199]
[1725656725857,0.022091,53394.0,53364.0,0.3984]
[1725656725858,0.479,53390.0,53369.0,0.01]
[1725656726084,0.888677,53393.0,53364.0,0.3984]
[1725656726801,0.287509,53379.0,53357.0,0.55430836]
[1725656727024,0.911677,53378.0,53357.0,0.55430836]
[1725656727240,1.0272956,53377.0,53357.0,0.55430836]
[1725656727462,0.278,53376.0,53353.0,0.210618]
[1725656727687,0.123,53376.0,53353.0,0.210618]
[1725656727913,0.123,53376.0,53358.0,0.012]
[1725656728131,0.123,53376.0,53353.0,0.212618]
[1725656728132,0.55430836,53375.0,53353.0,0.212618]
[1725656728349,0.123,53376.0,53353.0,0.212618]
[1725656728350,0.06773084,53374.0,53355.0,0.01]
[1725656728576,0.1,53375.0,53355.0,0.01]
[1725656728792,0.1,53375.0,53353.0,0.200618]
[1725656728793,0.000809,53379.0,53363.0,0.01]
[1725656729007,0.000809,53379.0,53367.0,0.01]
[1725656729234,0.000809,53379.0,53360.0,0.01]
[1725656729454,0.000809,53379.0,53353.0,0.200618]
[1725656729455,0.000809,53379.0,53358.0,0.01]
[1725656729705,0.000809,53379.0,53364.0,0.3984]
[1725656730149,0.000809,53379.0,53353.0,0.200618]
[1725656730376,0.3054,53376.0,53357.0,0.55430836]
[1725656730642,0.1556209,53375.0,53353.0,0.200618]
[1725656730869,0.023,53374.0,53353.0,0.200618]
[1725656731089,0.023,53374.0,53353.0,0.001618]
[1725656731090,0.01,53373.0,53353.0,0.001618]
[1725656731356,0.01,53365.0,53353.0,0.001618]
[1725656731599,0.888677,53372.0,53353.0,0.001618]
[1725656731600,0.7084,53364.0,53353.0,0.001618]
[1725656731827,0.7084,53364.0,53334.0,0.01]
[1725656731828,0.01,53361.0,53343.0,0.55430836]
[1725656732059,1.060517,53363.0,53323.0,0.4084]
[1725656732060,0.888677,53360.0,53323.0,0.4084]
[1725656732285,0.1,53362.0,53336.0,0.55430836]
[1725656732286,0.888677,53361.0,53336.0,0.55430836]
[1725656732513,0.123,53360.0,53337.0,0.01]
[1725656732759,1.56598536,53360.0,53328.0,0.3984]
[1725656732996,1.56598536,53360.0,53337.0,0.55430836]
[1725656732997,0.61582488,53359.0,53337.0,0.55430836]
[1725656733262,0.61582488,53359.0,53320.0,0.55430836]
[1725656733264,0.01,53349.0,53320.0,0.55430836]
[1725656733495,0.911677,53348.0,53334.0,0.55430836]
[1725656733728,0.911677,53348.0,53307.0,0.199]
[1725656733729,0.0271,53341.0,53307.0,0.199]
[1725656733977,0.9290245,53340.0,53321.0,0.53263609]
[1725656734203,0.9290245,53340.0,53307.0,0.5974]
[1725656734204,0.9290245,53340.0,53307.0,0.3984]
[1725656734205,0.01,53332.0,53307.0,0.3984]
[1725656734427,0.01,53332.0,53305.0,0.55430836]
[1725656734428,0.0271,53321.0,53305.0,0.55430836]
[1725656734653,1.1927245,53320.0,53305.0,0.53566901]
[1725656734883,1.1927245,53320.0,53283.0,0.002]
[1725656734884,0.01,53314.0,53283.0,0.002]
[1725656735121,0.01,53314.0,53283.0,0.55430836]
[1725656735122,0.01,53300.0,53283.0,0.55430836]
[1725656735349,0.01,53310.0,53283.0,0.55430836]
[1725656735350,0.01,53292.0,53283.0,0.55430836]
[1725656735576,0.90600235,53299.0,53284.0,0.55430836]
[1725656735577,0.01,53288.0,53284.0,0.55430836]
[1725656735805,0.01,53288.0,53255.0,0.199]
[1725656735806,0.90600235,53287.0,53255.0,0.199]
[1725656736041,1.00600235,53286.0,53284.0,0.55430836]
[1725656736268,1.00600235,53286.0,53264.0,0.01]
[1725656736269,0.92900235,53285.0,53264.0,0.01]
[1725656736490,0.01732535,53284.0,53269.0,0.4084]
[1725656736710,0.04032535,53283.0,53269.0,0.4084]
[1725656736931,0.04032535,53283.0,53273.0,0.01]
[1725656736932,0.01732535,53282.0,53273.0,0.01]
[1725656737204,0.0327245,53283.0,53269.0,0.3984]
[1725656737205,0.90600235,53281.0,53269.0,0.3984]
[1725656737476,0.023,53283.0,53253.0,0.00014]
[1725656737477,1.20820235,53280.0,53253.0,0.00014]
[1725656737711,1.20820235,53280.0,53256.0,0.55430836]
[1725656737712,0.90599715,53279.0,53256.0,0.55430836]
[1725656737947,0.90599715,53279.0,53253.0,0.00014]
[1725656737948,1.02899715,53278.0,53253.0,0.00014]
[1725656738184,0.2967,53275.0,53253.0,0.00014]
[1725656738435,1.0400943,53277.0,53253.0,0.00014]
[1725656738436,0.01,53264.0,53253.0,0.00014]
[1725656738653,0.2867,53272.0,53247.0,0.00162]
[1725656738655,0.01,53256.0,53247.0,0.00162]
[1725656738878,0.01,53260.0,53247.0,0.00162]
[1725656738879,0.2867,53254.0,53250.0,0.55430836]
[1725656739104,0.39632015,53253.0,53247.0,0.00162]
[1725656739330,0.39632015,53253.0,53223.0,0.3876]
[1725656739331,0.94576488,53252.0,53223.0,0.3876]
[1725656739553,0.94576488,53252.0,53204.0,0.55430836]
[1725656739554,0.94576488,53252.0,53233.0,0.55430836]
[1725656739555,0.01,53248.0,53233.0,0.55430836]
[1725656739803,0.01,53248.0,53210.0,0.3876]
[1725656739804,0.2867,53249.0,53217.0,0.01]
[1725656739805,0.91969715,53247.0,53217.0,0.01]
[1725656740032,0.90599715,53246.0,53219.0,0.56630836]
[1725656740258,0.90599715,53245.0,53220.0,0.011622]
[1725656740476,0.1,53246.0,53220.0,0.011622]
[1725656740477,0.96161805,53244.0,53222.0,0.002]
[1725656740699,0.888677,53243.0,53220.0,0.001622]
[1725656740925,0.888677,53243.0,53230.0,0.3876]
[1725656740926,0.11732015,53242.0,53230.0,0.3876]
[1725656741141,0.10990402,53242.0,53230.0,0.3876]
[1725656741396,0.05394889,53295.0,53230.0,0.3876]
[1725656741397,0.2867,53256.0,53236.0,0.01]
[1725656741619,0.55430836,53257.0,53243.0,0.01]
[1725656741854,0.55430836,53257.0,53237.0,0.00375617]
[1725656741857,0.55430836,53257.0,53241.0,0.01]
[1725656742070,0.52274555,53256.0,53236.0,0.012]
[1725656742324,0.3004,53267.0,53232.0,0.55430836]
[1725656742325,0.90599171,53255.0,53232.0,0.55430836]
[1725656742517,0.01,53265.0,53233.0,0.55430836]
[1725656742518,0.90599171,53254.0,53233.0,0.55430836]
[1725656742745,0.90576619,53253.0,53231.0,0.01]
[1725656742981,0.55430836,53265.0,53216.0,0.1952]
[1725656742982,1.29674027,53252.0,53216.0,0.1952]
[1725656743205,0.888452,53251.0,53217.0,0.3876]
[1725656743425,0.39097662,53252.0,53220.0,0.011622]
[1725656743426,1.011452,53250.0,53220.0,0.011622]
[1725656743653,1.011452,53250.0,53232.0,0.55430836]
[1725656743654,0.888452,53249.0,53232.0,0.55430836]
[1725656743877,0.751,53248.0,53226.0,0.002]
[1725656744093,0.123,53250.0,53227.0,0.01]
[1725656744094,0.4014,53247.0,53227.0,0.01]
[1725656744321,0.63,53246.0,53227.0,0.01]
[1725656744542,0.023,53246.0,53227.0,0.01]
[1725656744761,0.1,53245.0,53224.0,0.01]
[1725656745017,0.911452,53244.0,53220.0,0.001622]
[1725656745272,1.2762972,53243.0,53220.0,0.001622]
[1725656745487,0.79630836,53242.0,53220.0,0.001622]
[1725656745710,0.888452,53241.0,53220.0,0.001622]
[1725656745937,0.123,53240.0,53220.0,0.001622]
[1725656746157,0.743203,53239.0,53220.0,0.001622]
[1725656746404,0.3878452,53243.0,53222.0,0.01]
[1725656746630,0.10427662,53252.0,53220.0,0.001622]
[1725656746631,0.2867,53251.0,53229.0,0.01]
[1725656746855,0.55430836,53245.0,53230.0,0.3811]
[1725656747077,0.743203,53244.0,53230.0,0.3811]
[1725656747307,0.743203,53250.0,53220.0,0.001622]
[1725656747548,0.1053603,53249.0,53222.0,0.55430836]
[1725656747766,0.743203,53248.0,53222.0,0.55430836]
[1725656747997,0.695,53248.0,53225.0,0.01]
[1725656748218,0.695,53248.0,53222.0,0.55430836]
[1725656748219,0.612,53248.0,53228.0,0.01]
[1725656748447,0.453,53247.0,53228.0,0.01]
[1725656748903,0.162,53246.0,53228.0,0.01]
[1725656749153,0.075372,53253.0,53222.0,0.55430836]
[1725656749154,0.3004,53262.0,53236.0,0.01]
[1725656749385,0.187839,53237.0,53236.0,0.01]
[1725656749613,0.3004,53262.0,53236.0,0.01]
[1725656749835,0.55430836,53260.0,53236.0,0.01]
[1725656750072,0.7807789,53261.0,53229.0,0.5707]
[1725656750073,0.7807789,53261.0,53229.0,0.5727]
[1725656750074,1.29751136,53259.0,53229.0,0.5727]
[1725656750289,0.743203,53258.0,53229.0,0.5707]
[1725656750526,0.743203,53260.0,53229.0,0.5707]
[1725656750757,0.743203,53260.0,53238.0,0.55430836]
[1725656750985,0.743203,53260.0,53239.0,0.01]
[1725656751208,0.3004,53262.0,53239.0,0.01]
[1725656751209,0.000811,53243.0,53239.0,0.01]
[1725656751436,0.000811,53243.0,53232.0,0.01]
[1725656752095,0.000811,53243.0,53229.0,0.5707]
[1725656753662,0.000811,53243.0,53234.0,0.01]
[1725656753903,0.000811,53243.0,53239.0,0.01]
[1725656754368,0.000811,53243.0,53242.0,0.01]
[1725656754603,0.000811,53243.0,53242.0,0.01375564]
[1725656754837,0.02333138,53309.0,53260.0,0.1896]
[1725656754838,0.075343,53274.0,53260.0,0.1896]
[1725656755052,0.0145,53280.0,53260.0,0.1896]
[1725656755053,0.55430836,53266.0,53263.0,0.01]
[1725656755280,0.01363746,53273.0,53263.0,0.01]
[1725656755506,0.2867,53285.0,53261.0,0.3811]
[1725656755507,0.743203,53272.0,53261.0,0.3811]
[1725656755729,0.743203,53272.0,53260.0,0.1896]
[1725656755730,0.743203,53284.0,53260.0,0.01]
[1725656755954,0.0145,53290.0,53272.0,0.01]
[1725656756180,0.55430836,53288.0,53272.0,0.01]
[1725656756408,0.2867,53293.0,53272.0,0.01]
[1725656756627,0.743203,53292.0,53270.0,0.1896]
[1725656757329,0.369,53292.0,53272.0,0.01]
[1725656757561,0.55430836,53291.0,53273.0,0.3811]
[1725656757812,0.743203,53291.0,53273.0,0.3811]
[1725656758028,0.743203,53291.0,53256.0,0.55430836]
[1725656758029,0.743203,53291.0,53266.0,0.3811]
[1725656758472,0.175324,53290.0,53266.0,0.3811]
[1725656758699,0.175324,53290.0,53267.0,0.01]
[1725656758700,0.743203,53289.0,53267.0,0.01]
[1725656758920,0.123,53288.0,53267.0,0.01]
[1725656759149,0.866203,53288.0,53267.0,0.01]
[1725656759367,0.866203,53288.0,53266.0,0.3811]
[1725656759368,0.01531,53297.0,53273.0,0.01]
[1725656759592,1.29751136,53296.0,53273.0,0.01]
[1725656759831,0.01531,53297.0,53266.0,0.3811]
[1725656759832,0.01531,53297.0,53278.0,0.01]
[1725656760054,0.00081,53297.0,53279.0,0.4044]
[1725656760307,0.00081,53297.0,53283.0,0.01]
[1725656760522,0.00081,53297.0,53282.0,0.1957]
[1725656760523,0.00081,53297.0,53290.0,0.01]
[1725656760785,0.00081,53297.0,53288.0,0.4044]
[1725656760786,0.00081,53297.0,53291.0,0.00375291]
[1725656761005,0.00081,53297.0,53271.0,0.55430836]
[1725656761006,0.00081,53297.0,53294.0,0.01]
[1725656761250,0.00081,53297.0,53292.0,0.6001]
[1725656761489,0.00081,53297.0,53284.0,0.4044]
[1725656761990,0.00081,53297.0,53275.0,0.4044]
[1725656761991,0.743203,53296.0,53275.0,0.4044]
[1725656762225,0.743203,53296.0,53278.0,0.55430836]
[1725656762443,0.4097,53295.0,53268.0,0.4044]
[1725656762669,0.4097,53295.0,53256.0,0.56430836]
[1725656762670,0.757703,53294.0,53271.0,0.55430836]
[1725656762913,0.01,53291.0,53257.0,0.6001]
[1725656763136,0.876203,53293.0,53270.0,0.55430836]
[1725656763137,0.2867,53286.0,53270.0,0.55430836]
[1725656763360,0.2867,53286.0,53265.0,0.01]
[1725656763361,0.288,53285.0,53265.0,0.01]
[1725656763591,0.02927392,53290.0,53268.0,0.01]
[1725656763592,0.1,53284.0,53268.0,0.01]
[1725656763814,0.01,53283.0,53266.0,0.5892]